[Event "EYCC 2017"]
[Site "Mamaia"]
[Date "2017.09.08"]
[Round "4"]
[White "Smietanska, Wiktoria"]
[Black "Labaznikova, Kseniya"]
[Result "1-0"]
[ECO "B90"]
[WhiteElo "1446"]
[BlackElo "1104"]
[Annotator "NA"]
[PlyCount "85"]
[EventDate "2017.??.??"]
[EventType "swiss"]
[EventCountry "ROU"]
[SourceTitle "playchess.com"]
[Source "ChessBase"]
[SourceQuality "1"]
[TimeControl "40/5400+30:1800+30"]

1. e4 {[%emt 0:00:00]} c5 {[%emt 0:00:05]} 2. Nf3 {[%emt 0:00:00]} d6 {[%emt 0:00:04]} 3. d4 {[%emt 0:00:00]} cxd4 {[%emt 0:00:03]} 4. Nxd4 {[%emt 0:00:00]} Nf6 {[%emt 0:00:07]} 5. Nc3 {[%emt 0:00:00]} a6 {[%emt 0:00:05]} 6. Be3 {[%emt 0:00:36]} e6 {[%emt 0:00:16]} 7. f3 {[%emt 0:01:13]} Be7 {[%emt 0:00:10]} 8. Qd2 {[%emt 0:04:04]} Qc7 {[%emt 0:01:26]} 9. g4 {[%emt 0:04:42]} h6 {[%emt 0:00:57]} 10. h4 {[%emt 0:01:11]} Bd7 {[%emt 0:00:37]} 11. O-O-O {[%emt 0:04:05]} b5 {[%emt 0:00:24]} 12. Bd3 {[%emt 0:08:45]} Nc6 {[%emt 0:01:14]} 13. g5 {[%emt 0:06:35]} hxg5 {[%emt 0:00:06]} 14. hxg5 {[%emt 0:00:12]} Rxh1 {[%emt 0:01:02]} 15. Rxh1 {[%emt 0:00:10]} Ng8 {[%emt 0:00:55]} 16. Rh8 {[%emt 0:06:29]} Kf8 {[%emt 0:00:12]} 17. Nxc6 {[%emt 0:03:54]} Bxc6 {[%emt 0:00:13]} 18. Qh2 {[%emt 0:01:46]} b4 {[%emt 0:00:49]} 19. Qh7 {[%emt 0:05:05]} Ke8 {[%emt 0:00:54]} 20. Rxg8+ {[%emt 0:00:37]} Kd7 {[%emt 0:00:09]} 21. Ne2 {[%emt 0:02:57]} a5 {[%emt 0:01:34]} 22. Rxa8 {[%emt 0:00:28]} Bxa8 {[%emt 0:00:10]} 23. Bb5+ {[%emt 0:00:57]} Bc6 {[%emt 0:00:43]} 24. Bxc6+ {[%emt 0:00:13]} Qxc6 {[%emt 0:00:06]} 25. Qh2 {[%emt 0:01:38]} a4 {[%emt 0:00:16]} 26. Nd4 {[%emt 0:00:57]} Qc4 {[%emt 0:00:40]} 27. Qe2 {[%emt 0:03:08]} Qc7 {[%emt 0:01:07]} 28. Qb5+ {[%emt 0:00:30]} Kd8 {[%emt 0:00:35]} 29. Qc6 {[%emt 0:00:55]} Qb8 {[%emt 0:00:32]} 30. Nb5 {[%emt 0:00:49]} g6 {[%emt 0:01:51]} 31. Bb6+ {[%emt 0:00:14]} Qxb6 {[%emt 0:00:19]} 32. Qxb6+ {[%emt 0:00:11]} Ke8 {[%emt 0:00:13]} 33. Qb8+ {[%emt 0:00:16]} Kd7 {[%emt 0:00:07]} 34. Qc7+ {[%emt 0:00:10]} Ke8 {[%emt 0:00:12]} 35. Qc8+ {[%emt 0:00:12]} Bd8 {[%emt 0:00:07]} 36. Nd4 {[%emt 0:00:21]} e5 {[%emt 0:00:11]} 37. Nc6 {[%emt 0:00:06]} Kf8 {[%emt 0:00:13]} 38. Qxd8+ {[%emt 0:00:05]} Kg7 {[%emt 0:00:07]} 39. Qf6+ {[%emt 0:00:09]} Kh7 {[%emt 0:00:38]} 40. Nd8 {[%emt 0:00:00]} Kg8 {[%emt 0:00:47]} 41. Qxf7+ {[%emt 0:00:35]} Kh8 {[%emt 0:00:08]} 42. Ne6 {[%emt 0:00:19]} a3 {[%emt 0:00:08]} 43. Qg7# 1-0

[Event "EYCC 2017"]
[Site "Mamaia"]
[Date "2017.09.08"]
[Round "4"]
[White "Zverev, Lev"]
[Black "Samunenkov, Igor"]
[Result "0-1"]
[ECO "B10"]
[WhiteElo "1440"]
[BlackElo "1794"]
[Annotator "NA"]
[PlyCount "88"]
[EventDate "2017.??.??"]
[EventType "swiss"]
[EventCountry "ROU"]
[SourceTitle "playchess.com"]
[Source "ChessBase"]
[SourceQuality "1"]
[TimeControl "40/5400+30:1800+30"]

1. e4 c6 2. c4 d5 3. cxd5 cxd5 4. exd5 {[%emt 0:00:10]} Nf6 5. Qa4+ Nbd7 6. Nc3 g6 7. Nf3 Bg7 8. Bc4 O-O 9. d3 a6 10. Qa3 b6 11. O-O Bb7 12. Re1 b5 13. Bb3 Re8 14. Qb4 Nb6 15. Bg5 Nbxd5 16. Nxd5 Bxd5 17. Bxf6 Bxf6 18. Bxd5 Qxd5 19. d4 a5 20. Qb3 Qxb3 21. axb3 Red8 22. Re4 e6 23. Ne5 b4 24. f4 Rd5 25. Kf2 Rc8 26. Ke3 Bxe5 27. Rxe5 Rxe5+ 28. fxe5 Rc2 29. Kd3 Rxb2 30. Kc4 Rxg2 31. Rxa5 Rxh2 32. Kxb4 h5 33. Kb5 h4 34. b4 h3 35. Ka6 Rb2 36. b5 h2 37. Ra1 g5 38. b6 g4 39. b7 g3 40. Rh1 Kg7 41. Rf1 g2 42. d5 gxf1=Q+ 43. Ka7 Qb5 44. d6 Qxb7# 0-1

[Event "EYCC 2017"]
[Site "Mamaia"]
[Date "2017.09.08"]
[Round "4"]
[White "Zubkovskaya, Ekaterina"]
[Black "Natoli, Alessia"]
[Result "1/2-1/2"]
[ECO "B40"]
[WhiteElo "1399"]
[BlackElo "1216"]
[Annotator "NA RC"]
[PlyCount "85"]
[EventDate "2017.??.??"]
[EventType "swiss"]
[EventCountry "ROU"]
[SourceTitle "playchess.com"]
[Source "ChessBase"]
[SourceQuality "1"]
[TimeControl "40/5400+30:1800+30"]

1. e4 {[%emt 0:00:00]} c5 {[%emt 0:00:00]} 2. Nf3 {[%emt 0:00:00]} e6 {[%emt 0:00:01]} 3. d4 {[%emt 0:00:00]} cxd4 {[%emt 0:00:09]} 4. Nxd4 {[%emt 0:00:00]} Nf6 {[%emt 0:00:30]} 5. Bd3 {[%emt 0:00:00]} a6 {[%emt 0:00:31]} 6. c4 {[%emt 0:00:03]} Nc6 {[%emt 0:00:30]} 7. Nf3 {[%emt 0:00:15]} d6 {[%emt 0:00:36]} 8. O-O {[%emt 0:00:14]} Be7 {[%emt 0:00:18]} 9. Nc3 {[%emt 0:00:13]} O-O {[%emt 0:00:54]} 10. Qe2 {[%emt 0:00:11]} Re8 {[%emt 0:01:16]} 11. Bd2 {[%emt 0:00:38]} d5 {[%emt 0:04:35]} 12. e5 {[%emt 0:00:47]} Nd7 {[%emt 0:01:23]} 13. Rad1 {[%emt 0:00:51]} d4 {[%emt 0:02:05]} 14. Ne4 {[%emt 0:02:05]} Ndxe5 {[%emt 0:04:01]} 15. Nxe5 {[%emt 0:00:23]} Nxe5 {[%emt 0:00:15]} 16. Ng3 {[%emt 0:00:12]} Nxd3 {[%emt 0:00:30]} 17. Qxd3 {[%emt 0:00:47]} e5 {[%emt 0:02:02]} 18. f4 {[%emt 0:02:47]} Bd6 {[%emt 0:02:42]} 19. Qf3 {[%emt 0:00:57]} Qc7 {[%emt 0:01:14]} 20. Ne4 {[%emt 0:01:04]} exf4 {[%emt 0:01:04]} 21. Nxd6 {[%emt 0:00:13]} Qxd6 {[%emt 0:00:25]} 22. Bxf4 {[%emt 0:00:05]} Qf6 {[%emt 0:01:00]} 23. Qb3 {[%emt 0:00:49]} Qd8 {[%emt 0:01:56]} 24. Qg3 {[%emt 0:00:39]} Qb6 {[%emt 0:02:59]} 25. Be5 {[%emt 0:00:24]} d3+ {[%emt 0:05:13]} 26. Kh1 {[%emt 0:00:12]} Qg6 {[%emt 0:00:45]} 27. Rxd3 {[%emt 0:01:09]} Qxg3 {[%emt 0:00:47]} 28. hxg3 {[%emt 0:00:05]} Bg4 {[%emt 0:01:07]} 29. Rf4 {[%emt 0:00:43]} Be2 {[%emt 0:00:48]} 30. Re3 {[%emt 0:00:09]} Bh5 {[%emt 0:01:28]} 31. Bd4 {[%emt 0:00:09]} Rxe3 {[%emt 0:01:32]} 32. Bxe3 {[%emt 0:00:09]} Re8 {[%emt 0:01:12]} 33. Rd4 {[%emt 0:00:18]} h6 {[%emt 0:00:52]} 34. Bf4 {[%emt 0:00:42]} g5 {[%emt 0:02:36]} 35. Bc7 {[%emt 0:00:26]} Re7 {[%emt 0:02:18]} 36. Bd8 {[%emt 0:00:36]} Re2 {[%emt 0:01:33]} 37. Bf6 {[%emt 0:00:44]} Re6 {[%emt 0:01:38]} 38. Rd8+ {[%emt 0:00:10]} Kh7 {[%emt 0:00:09]} 39. Bc3 {[%emt 0:00:00]} Re7 {[%emt 0:00:00]} 40. Rd4 {[%emt 0:00:00]} f5 {[%emt 0:07:12]} 41. Rd8 {[%emt 0:01:22]} Be8 {[%emt 0:02:20]} 42. Rd5 {[%emt 0:00:15]} Bd7 {[%emt 0:02:30]} 43. Rd6 {[%emt 0:02:32]} 1/2-1/2

[Event "EYCC 2017"]
[Site "Mamaia"]
[Date "2017.09.08"]
[Round "4"]
[White "Bousmaha, Leila"]
[Black "Pawicka, Magdalena"]
[Result "1/2-1/2"]
[ECO "C47"]
[WhiteElo "1364"]
[BlackElo "1826"]
[Annotator "NA"]
[PlyCount "96"]
[EventDate "2017.??.??"]
[EventType "swiss"]
[EventCountry "ROU"]
[SourceTitle "playchess.com"]
[Source "ChessBase"]
[SourceQuality "1"]
[TimeControl "40/5400+30:1800+30"]

1. e4 {[%emt 0:00:00]} e5 {[%emt 0:00:06]} 2. Nf3 {[%emt 0:00:08]} Nc6 {[%emt 0:00:07]} 3. Nc3 {[%emt 0:00:38]} Nf6 {[%emt 0:00:06]} 4. d4 {[%emt 0:00:33]} exd4 {[%emt 0:02:14]} 5. Nxd4 {[%emt 0:02:58]} Bb4 {[%emt 0:00:13]} 6. Nxc6 {[%emt 0:00:15]} bxc6 {[%emt 0:00:10]} 7. Bd3 {[%emt 0:00:27]} O-O {[%emt 0:00:26]} 8. O-O {[%emt 0:00:19]} Re8 {[%emt 0:01:13]} 9. Qf3 {[%emt 0:06:43]} Rb8 {[%emt 0:00:59]} 10. Bg5 {[%emt 0:04:11]} Bd6 {[%emt 0:00:47]} 11. Rab1 {[%emt 0:01:17]} Be5 {[%emt 0:00:53]} 12. Bc4 {[%emt 0:03:12]} d6 {[%emt 0:07:10]} 13. Qd3 {[%emt 0:07:34]} Bxh2+ {[%emt 0:04:25]} 14. Kxh2 {[%emt 0:00:18]} Ng4+ {[%emt 0:00:08]} 15. Kg1 {[%emt 0:00:12]} Qxg5 {[%emt 0:00:16]} 16. Qg3 {[%emt 0:03:46]} Qe5 {[%emt 0:04:06]} 17. Qxe5 {[%emt 0:02:57]} Nxe5 {[%emt 0:00:21]} 18. Be2 {[%emt 0:01:05]} f5 {[%emt 0:07:02]} 19. f4 {[%emt 0:00:34]} Nf7 {[%emt 0:01:19]} 20. Bf3 {[%emt 0:01:10]} fxe4 {[%emt 0:01:58]} 21. Bxe4 {[%emt 0:00:07]} d5 {[%emt 0:01:09]} 22. Bd3 {[%emt 0:00:54]} Nd6 {[%emt 0:01:38]} 23. b3 {[%emt 0:03:18]} Bf5 {[%emt 0:01:50]} 24. Rf3 {[%emt 0:02:24]} Ne4 {[%emt 0:04:47]} 25. Nxe4 {[%emt 0:03:37]} Bxe4 {[%emt 0:00:37]} 26. Bxe4 {[%emt 0:00:10]} Rxe4 {[%emt 0:00:34]} 27. g3 {[%emt 0:01:00]} d4 {[%emt 0:03:27]} 28. Rd1 {[%emt 0:01:53]} c5 {[%emt 0:02:01]} 29. Kf1 {[%emt 0:02:00]} Rbe8 {[%emt 0:01:19]} 30. c3 {[%emt 0:04:50]} Kf7 {[%emt 0:14:54]} 31. cxd4 {[%emt 0:01:05]} Rxd4 {[%emt 0:00:29]} 32. Rc1 {[%emt 0:01:52]} Rd5 {[%emt 0:08:56]} 33. Rfc3 {[%emt 0:00:13]} Ke6 {[%emt 0:01:49]} 34. Rxc5 {[%emt 0:00:12]} Rxc5 {[%emt 0:01:30]} 35. Rxc5 {[%emt 0:00:06]} Kd6 {[%emt 0:00:04]} 36. Ra5 {[%emt 0:00:09]} Ra8 {[%emt 0:00:14]} 37. b4 {[%emt 0:01:36]} Kc6 {[%emt 0:01:05]} 38. a4 {[%emt 0:00:06]} Rb8 {[%emt 0:02:29]} 39. b5+ {[%emt 0:01:37]} Kb7 {[%emt 0:00:39]} 40. Ra6 {[%emt 0:00:00]} Rd8 {[%emt 0:02:32]} 41. Re6 {[%emt 0:02:22]} Rd6 {[%emt 0:02:06]} 42. Re4 {[%emt 0:00:39]} Kb6 {[%emt 0:01:21]} 43. Rc4 {[%emt 0:01:01]} Rd1+ {[%emt 0:08:47]} 44. Ke2 {[%emt 0:00:54]} Ra1 {[%emt 0:00:06]} 45. Rc6+ {[%emt 0:00:38]} Kb7 {[%emt 0:00:23]} 46. Rc4 {[%emt 0:00:09]} Kb6 {[%emt 0:01:23]} 47. Rc6+ {[%emt 0:00:08]} Kb7 {[%emt 0:00:07]} 48. Rc4 {[%emt 0:00:04]} c5 1/2-1/2

[Event "EYCC 2017"]
[Site "Mamaia"]
[Date "2017.09.08"]
[Round "4"]
[White "Abaszada, Suada"]
[Black "Kusakina, Uliana"]
[Result "1-0"]
[ECO "A13"]
[WhiteElo "1295"]
[BlackElo "1157"]
[Annotator "NA"]
[PlyCount "157"]
[EventDate "2017.??.??"]
[EventType "swiss"]
[EventCountry "ROU"]
[SourceTitle "playchess.com"]
[Source "ChessBase"]
[SourceQuality "1"]
[TimeControl "40/5400+30:1800+30"]

1. c4 {[%emt 0:00:00]} e6 {[%emt 0:00:11]} 2. g3 {[%emt 0:00:00]} d5 {[%emt 0:00:37]} 3. Bg2 {[%emt 0:00:00]} c6 {[%emt 0:01:19]} 4. cxd5 {[%emt 0:03:38]} cxd5 {[%emt 0:00:27]} 5. d4 {[%emt 0:01:32]} f5 {[%emt 0:03:48]} 6. Nf3 {[%emt 0:03:48]} Bd6 {[%emt 0:01:33]} 7. O-O {[%emt 0:06:30]} Nf6 {[%emt 0:00:42]} 8. Nc3 {[%emt 0:01:11]} O-O {[%emt 0:02:29]} 9. Qc2 {[%emt 0:05:26]} Nc6 {[%emt 0:04:17]} 10. a3 {[%emt 0:10:45]} h6 {[%emt 0:02:55]} 11. b4 {[%emt 0:02:12]} a6 {[%emt 0:02:09]} 12. Na4 {[%emt 0:24:50]} Nh7 {[%emt 0:01:40]} 13. Nc5 {[%emt 0:02:13]} Bxc5 {[%emt 0:04:43]} 14. Qxc5 {[%emt 0:03:20]} Kh8 {[%emt 0:02:31]} 15. Bf4 {[%emt 0:02:50]} g5 {[%emt 0:13:57]} 16. Bd6 {[%emt 0:03:22]} Rf7 {[%emt 0:03:41]} 17. Ne5 {[%emt 0:03:58]} Nxe5 {[%emt 0:02:07]} 18. Bxe5+ {[%emt 0:00:29]} Nf6 {[%emt 0:03:12]} 19. f4 {[%emt 0:06:02]} g4 {[%emt 0:03:10]} 20. Rac1 {[%emt 0:02:25]} Kh7 {[%emt 0:02:32]} 21. Bxf6 {[%emt 0:02:41]} Qxf6 {[%emt 0:00:57]} 22. e3 {[%emt 0:01:34]} Bd7 {[%emt 0:00:52]} 23. Qd6 {[%emt 0:01:29]} Bc6 {[%emt 0:01:38]} 24. Qe5 {[%emt 0:01:13]} Qxe5 {[%emt 0:00:45]} 25. fxe5 {[%emt 0:00:18]} Rc8 {[%emt 0:00:49]} 26. Rf2 {[%emt 0:00:59]} Rcc7 {[%emt 0:00:56]} 27. Rfc2 {[%emt 0:00:23]} Kg8 {[%emt 0:00:23]} 28. a4 {[%emt 0:00:39]} Rcd7 {[%emt 0:04:48]} 29. a5 {[%emt 0:01:37]} Kf8 {[%emt 0:01:12]} 30. Bf1 {[%emt 0:00:56]} Ba4 {[%emt 0:08:12]} 31. Rc8+ {[%emt 0:01:05]} Kg7 {[%emt 0:01:55]} 32. Re8 {[%emt 0:03:55]} Rde7 {[%emt 0:01:11]} 33. Rxe7 {[%emt 0:00:38]} Rxe7 {[%emt 0:00:23]} 34. Be2 {[%emt 0:00:29]} Kg6 {[%emt 0:01:58]} 35. Ra1 {[%emt 0:00:57]} Bd7 {[%emt 0:01:41]} 36. Rc1 {[%emt 0:00:14]} Rh7 {[%emt 0:01:24]} 37. Rc5 {[%emt 0:00:57]} h5 {[%emt 0:01:13]} 38. b5 {[%emt 0:00:52]} axb5 {[%emt 0:00:36]} 39. Bxb5 {[%emt 0:00:05]} Bxb5 {[%emt 0:00:25]} 40. Rxb5 {[%emt 0:00:00]} Kg5 {[%emt 0:00:23]} 41. Rc5 {[%emt 0:02:33]} h4 {[%emt 0:00:54]} 42. Kg2 {[%emt 0:01:44]} hxg3 {[%emt 0:01:40]} 43. hxg3 {[%emt 0:00:05]} Kg6 {[%emt 0:02:29]} 44. Rc8 {[%emt 0:01:20]} Re7 {[%emt 0:01:00]} 45. Rc5 {[%emt 0:00:25]} Kf7 {[%emt 0:00:47]} 46. Rc8 {[%emt 0:00:27]} Rd7 {[%emt 0:00:37]} 47. Rc5 {[%emt 0:00:29]} Ke8 {[%emt 0:01:56]} 48. Rc8+ {[%emt 0:00:13]} Ke7 {[%emt 0:00:56]} 49. Kf2 {[%emt 0:00:22]} Kf7 {[%emt 0:02:51]} 50. Kg2 {[%emt 0:00:15]} Kg6 {[%emt 0:01:42]} 51. Kf2 {[%emt 0:04:09]} Rh7 {[%emt 0:01:39]} 52. Kg2 {[%emt 0:00:12]} Kf7 {[%emt 0:03:10]} 53. Rc7+ {[%emt 0:04:40]} Kg6 {[%emt 0:01:14]} 54. Rc8 {[%emt 0:01:05]} Rd7 {[%emt 0:05:27]} 55. Kf2 {[%emt 0:03:18]} Kf7 {[%emt 0:01:34]} 56. Kg2 {[%emt 0:01:33]} Ke7 {[%emt 0:00:48]} 57. Kf2 {[%emt 0:02:08]} b6 {[%emt 0:01:29]} 58. axb6 {[%emt 0:03:17]} Rb7 {[%emt 0:00:26]} 59. Rc6 {[%emt 0:00:11]} Rb8 {[%emt 0:11:32]} 60. Ke2 {[%emt 0:01:21]} Ra8 {[%emt 0:06:03]} 61. b7 {[%emt 0:03:37]} Ra2+ {[%emt 0:00:52]} 62. Kd3 {[%emt 0:00:31]} Rb2 {[%emt 0:00:54]} 63. Rc7+ {[%emt 0:00:08]} Kd8 {[%emt 0:01:41]} 64. Rc8+ {[%emt 0:00:07]} Kd7 {[%emt 0:00:46]} 65. b8=Q {[%emt 0:00:03]} Rxb8 {[%emt 0:00:15]} 66. Rxb8 {[%emt 0:00:03]} Kc7 {[%emt 0:00:15]} 67. Rg8 {[%emt 0:00:20]} Kd7 {[%emt 0:00:24]} 68. Kc3 {[%emt 0:00:21]} Kc7 {[%emt 0:00:28]} 69. Kb4 {[%emt 0:00:10]} Kc6 {[%emt 0:00:41]} 70. Rg6 {[%emt 0:00:18]} Kd7 {[%emt 0:00:10]} 71. Kc5 {[%emt 0:00:09]} f4 {[%emt 0:00:14]} 72. exf4 {[%emt 0:00:10]} Ke7 {[%emt 0:00:25]} 73. Rg7+ {[%emt 0:00:08]} Kf8 {[%emt 0:00:37]} 74. Ra7 {[%emt 0:00:02]} Kg8 {[%emt 0:00:19]} 75. Kd6 {[%emt 0:00:08]} Kh8 {[%emt 0:00:35]} 76. Kxe6 {[%emt 0:00:09]} Kg8 {[%emt 0:00:17]} 77. Kf6 {[%emt 0:00:06]} Kh8 {[%emt 0:00:25]} 78. Kg6 {[%emt 0:00:04]} Kg8 {[%emt 0:00:06]} 79. Ra8# {[%emt 0:00:05]} 1-0

[Event "EYCC 2017"]
[Site "Mamaia"]
[Date "2017.09.08"]
[Round "4"]
[White "Hajdu, Marton Abris"]
[Black "Royal, Shreyas"]
[Result "0-1"]
[ECO "B78"]
[WhiteElo "1280"]
[BlackElo "1700"]
[Annotator "NA"]
[PlyCount "90"]
[EventDate "2017.??.??"]
[EventType "swiss"]
[EventCountry "ROU"]
[SourceTitle "playchess.com"]
[Source "ChessBase"]
[SourceQuality "1"]
[TimeControl "40/5400+30:1800+30"]

1. e4 c5 2. Nf3 d6 3. d4 cxd4 4. Nxd4 Nf6 5. Nc3 g6 6. Be3 Bg7 7. f3 O-O 8. Qd2 Nc6 9. Bc4 Bd7 10. O-O-O Rc8 11. Bb3 Ne5 12. h4 h5 13. Bg5 Rc5 14. Bxf6 Bxf6 15. f4 Nc4 16. Bxc4 Rxc4 17. Nde2 Bg7 18. e5 Bg4 19. exd6 exd6 20. Qxd6 Qxd6 21. Rxd6 Bxc3 22. Nxc3 Rxf4 23. g3 Rf3 24. Rg1 Re8 25. Nd5 Kg7 26. a3 Re2 27. Nf4 Rh2 28. Nd3 Rh3 29. Ne5 Rfxg3 30. Rxg3 Rxg3 31. Nxg4 Rxg4 32. Rd7 Rxh4 33. Rxb7 Ra4 34. Kd2 h4 35. Re7 h3 36. Re2 g5 37. Rh2 g4 38. Kd3 f5 39. Ke3 f4+ 40. Ke2 Re4+ 41. Kf1 Kf6 42. c3 Kg5 43. b3 Kh4 44. c4 g3 45. Rd2 h2 0-1

[Event "EYCC 2017"]
[Site "Mamaia"]
[Date "2017.09.08"]
[Round "4"]
[White "Keskinler, Ela"]
[Black "Svergina, Sofya"]
[Result "0-1"]
[ECO "A05"]
[WhiteElo "1276"]
[BlackElo "1472"]
[Annotator "NA RC"]
[PlyCount "96"]
[EventDate "2017.??.??"]
[EventType "swiss"]
[EventCountry "ROU"]
[SourceTitle "playchess.com"]
[Source "ChessBase"]
[SourceQuality "1"]
[TimeControl "40/5400+30:1800+30"]

1. Nf3 {[%emt 0:00:00]} Nf6 {[%emt 0:00:23]} 2. g3 {[%emt 0:00:00]} b6 {[%emt 0:00:18]} 3. Bg2 {[%emt 0:00:57]} Bb7 {[%emt 0:00:20]} 4. d4 {[%emt 0:01:42]} g6 {[%emt 0:01:29]} 5. O-O {[%emt 0:00:56]} Bg7 {[%emt 0:00:15]} 6. c4 {[%emt 0:01:42]} O-O {[%emt 0:00:31]} 7. Nc3 {[%emt 0:01:45]} e6 {[%emt 0:02:31]} 8. Re1 {[%emt 0:13:46]} d5 {[%emt 0:02:16]} 9. b3 {[%emt 0:10:52]} c5 {[%emt 0:07:51]} 10. e3 {[%emt 0:02:18]} Nc6 {[%emt 0:02:31]} 11. Bb2 {[%emt 0:05:56]} Re8 {[%emt 0:07:37]} 12. dxc5 {[%emt 0:06:30]} bxc5 {[%emt 0:00:15]} 13. Rc1 {[%emt 0:24:53]} dxc4 {[%emt 0:02:03]} 14. bxc4 {[%emt 0:00:23]} Nb4 {[%emt 0:04:12]} 15. a3 {[%emt 0:00:30]} Nd3 {[%emt 0:00:30]} 16. Ne5 {[%emt 0:00:30]} Nxe1 {[%emt 0:00:30]} 17. Bxb7 {[%emt 0:00:30]} Qxd1 {[%emt 0:00:30]} 18. Rxd1 {[%emt 0:00:30]} Rab8 {[%emt 0:00:30]} 19. Bc6 {[%emt 0:00:30]} Rxb2 {[%emt 0:00:30]} 20. Bxe8 {[%emt 0:00:30]} Nxe8 {[%emt 0:00:30]} 21. f4 {[%emt 0:00:30]} Bxe5 {[%emt 0:00:30]} 22. fxe5 {[%emt 0:00:30]} Nf3+ {[%emt 0:00:30]} 23. Kf1 {[%emt 0:00:30]} Nxh2+ {[%emt 0:00:30]} 24. Ke1 {[%emt 0:19:13]} Nf3+ {[%emt 0:05:15]} 25. Kf1 {[%emt 0:00:10]} Nxe5 {[%emt 0:01:02]} 26. Rd8 {[%emt 0:00:50]} Kf8 {[%emt 0:00:10]} 27. Nb5 {[%emt 0:00:38]} Ke7 {[%emt 0:01:20]} 28. Ra8 {[%emt 0:00:40]} Nxc4 {[%emt 0:01:30]} 29. Rxa7+ {[%emt 0:00:27]} Kf6 {[%emt 0:00:09]} 30. Ke1 {[%emt 0:01:34]} Rxb5 {[%emt 0:00:19]} 31. a4 {[%emt 0:00:35]} Ra5 {[%emt 0:00:03]} 32. Rxa5 {[%emt 0:00:07]} Nxa5 {[%emt 0:00:14]} 33. Kd2 {[%emt 0:00:09]} Nc7 {[%emt 0:00:15]} 34. Kc3 {[%emt 0:00:15]} Nd5+ {[%emt 0:00:16]} 35. Kd2 {[%emt 0:00:05]} Nb6 {[%emt 0:00:08]} 36. Ke2 {[%emt 0:00:13]} Nxa4 {[%emt 0:00:07]} 37. Kf3 {[%emt 0:00:10]} c4 {[%emt 0:00:45]} 38. Ke2 {[%emt 0:00:38]} Ke5 {[%emt 0:00:14]} 39. Kd2 {[%emt 0:00:08]} Ke4 {[%emt 0:00:07]} 40. Ke2 {[%emt 0:00:00]} c3 {[%emt 0:00:05]} 41. Kf2 {[%emt 0:00:32]} c2 {[%emt 0:00:05]} 42. Ke2 {[%emt 0:00:05]} c1=Q {[%emt 0:00:14]} 43. Kf2 {[%emt 0:00:07]} Qxe3+ {[%emt 0:00:06]} 44. Kg2 {[%emt 0:00:05]} Kf5 {[%emt 0:00:22]} 45. Kh2 {[%emt 0:00:07]} Kg4 {[%emt 0:00:13]} 46. Kg2 {[%emt 0:00:04]} Nb3 {[%emt 0:00:20]} 47. Kf1 {[%emt 0:00:08]} Kf3 {[%emt 0:00:05]} 48. g4 {[%emt 0:00:15]} Qf2# {[%emt 0:00:04]} 0-1

[Event "EYCC 2017"]
[Site "Mamaia"]
[Date "2017.09.08"]
[Round "4"]
[White "Sichinava, Mariam"]
[Black "Denic, Hana"]
[Result "0-1"]
[ECO "A05"]
[WhiteElo "1205"]
[BlackElo "1555"]
[Annotator "NA"]
[PlyCount "98"]
[EventDate "2017.??.??"]
[EventType "swiss"]
[EventCountry "ROU"]
[SourceTitle "playchess.com"]
[Source "ChessBase"]
[SourceQuality "1"]
[TimeControl "40/5400+30:1800+30"]

1. Nf3 {[%emt 0:00:00]} Nf6 {[%emt 0:00:17]} 2. g3 {[%emt 0:00:00]} e6 {[%emt 0:00:10]} 3. c4 {[%emt 0:00:00]} d5 {[%emt 0:00:13]} 4. d4 {[%emt 0:00:00]} Bb4+ {[%emt 0:00:32]} 5. Bd2 {[%emt 0:02:50]} Bxd2+ {[%emt 0:00:47]} 6. Qxd2 {[%emt 0:01:31]} Nc6 {[%emt 0:01:20]} 7. cxd5 {[%emt 0:01:25]} exd5 {[%emt 0:01:01]} 8. Bg2 {[%emt 0:00:25]} O-O {[%emt 0:00:27]} 9. O-O {[%emt 0:00:13]} Re8 {[%emt 0:01:03]} 10. Nc3 {[%emt 0:00:57]} Bg4 {[%emt 0:04:09]} 11. Qf4 {[%emt 0:09:13]} Ne7 {[%emt 0:03:35]} 12. h3 {[%emt 0:08:51]} Ng6 {[%emt 0:00:52]} 13. Qd2 {[%emt 0:00:42]} Bf5 {[%emt 0:01:03]} 14. Rac1 {[%emt 0:05:22]} c6 {[%emt 0:01:08]} 15. Rfd1 {[%emt 0:05:58]} Qe7 {[%emt 0:03:25]} 16. e3 {[%emt 0:10:40]} Ne4 {[%emt 0:09:00]} 17. Qe2 {[%emt 0:07:38]} Qf6 {[%emt 0:06:04]} 18. Nxe4 {[%emt 0:04:12]} Bxe4 {[%emt 0:01:55]} 19. Nd2 {[%emt 0:03:53]} Bxg2 {[%emt 0:00:25]} 20. Kxg2 {[%emt 0:00:11]} Qxd4 {[%emt 0:00:41]} 21. Nb3 {[%emt 0:01:43]} Qe4+ {[%emt 0:02:38]} 22. Kh2 {[%emt 0:00:33]} b6 {[%emt 0:02:41]} 23. Nd2 {[%emt 0:04:13]} Qe6 {[%emt 0:01:40]} 24. Nf3 {[%emt 0:00:59]} c5 {[%emt 0:00:45]} 25. Qd2 {[%emt 0:02:53]} Red8 {[%emt 0:01:51]} 26. a4 {[%emt 0:01:31]} Qe4 {[%emt 0:03:46]} 27. Qe2 {[%emt 0:02:08]} Qxa4 {[%emt 0:01:33]} 28. Ra1 {[%emt 0:00:11]} Qe4 {[%emt 0:01:03]} 29. Ng5 {[%emt 0:00:47]} Qf5 {[%emt 0:01:32]} 30. h4 {[%emt 0:00:48]} h6 {[%emt 0:01:10]} 31. Nf3 {[%emt 0:00:24]} Qg4 {[%emt 0:00:59]} 32. Ng1 {[%emt 0:00:50]} Qxe2 {[%emt 0:00:29]} 33. Nxe2 {[%emt 0:00:04]} a5 {[%emt 0:02:45]} 34. Nc3 {[%emt 0:01:37]} d4 {[%emt 0:01:12]} 35. exd4 {[%emt 0:00:08]} cxd4 {[%emt 0:00:20]} 36. Ne2 {[%emt 0:00:47]} d3 {[%emt 0:00:21]} 37. Nc1 {[%emt 0:00:45]} d2 {[%emt 0:00:43]} 38. Nb3 {[%emt 0:00:07]} Ne5 {[%emt 0:00:19]} 39. Nxd2 {[%emt 0:00:00]} Rxd2 {[%emt 0:00:00]} 40. Rxd2 {[%emt 0:00:00]} Nf3+ {[%emt 0:01:25]} 41. Kg2 {[%emt 0:06:28]} Nxd2 {[%emt 0:00:08]} 42. b4 {[%emt 0:00:26]} Nb3 {[%emt 0:01:01]} 43. Ra3 {[%emt 0:00:26]} a4 {[%emt 0:00:14]} 44. Kf3 {[%emt 0:00:10]} b5 {[%emt 0:00:11]} 45. Ke4 {[%emt 0:00:13]} Rd8 {[%emt 0:00:23]} 46. Ke3 {[%emt 0:00:08]} Rd4 {[%emt 0:00:30]} 47. Ke2 {[%emt 0:00:13]} Rxb4 {[%emt 0:00:18]} 48. Kd3 {[%emt 0:00:11]} Rc4 {[%emt 0:00:09]} 49. Ra2 {[%emt 0:00:16]} Nc1+ 0-1

[Event "EYCC 2017"]
[Site "Mamaia"]
[Date "2017.09.08"]
[Round "4"]
[White "Karavitaki, Antonia"]
[Black "Markus, Molli Amina"]
[Result "0-1"]
[ECO "D35"]
[WhiteElo "1196"]
[BlackElo "1520"]
[Annotator "NA"]
[PlyCount "174"]
[EventDate "2017.??.??"]
[EventType "swiss"]
[EventCountry "ROU"]
[SourceTitle "playchess.com"]
[Source "ChessBase"]
[SourceQuality "1"]
[TimeControl "40/5400+30:1800+30"]

1. d4 d5 2. c4 Nf6 3. Nc3 e6 4. cxd5 Nxd5 5. e4 Nxc3 6. bxc3 c5 7. Nf3 cxd4 8. cxd4 Bb4+ 9. Bd2 Bxd2+ 10. Qxd2 O-O 11. Bc4 Nd7 12. O-O b6 13. Rfc1 Bb7 14. Qe2 Nf6 15. Bd3 Rc8 16. Rab1 Rxc1+ 17. Rxc1 Qa8 18. Nd2 Rd8 19. Rc4 Rc8 20. Rxc8+ Qxc8 21. Nc4 Qd8 22. Qe3 g6 23. f3 Kg7 24. Ne5 Qc8 25. Bc4 Ba6 26. Qd3 Bxc4 27. Qxc4 Qxc4 28. Nxc4 Nd7 29. Kf2 a6 30. Ke3 Kf6 31. Kf4 h6 32. Nd6 b5 33. g3 Nb8 34. Nb7 Nc6 35. e5+ Ke7 36. Ke4 Nb4 37. a3 Nc2 38. Nc5 a5 39. a4 bxa4 40. Nxa4 Nb4 41. Nc5 Ke8 42. Ke3 Ke7 43. Ke4 Kf8 44. Ke3 Kg7 45. Kd2 Nd5 46. Kd3 Kf8 47. Kd2 Nb4 48. Kc3 Nd5+ 49. Kd3 h5 50. Na4 Ne7 51. Ke4 Kg7 52. Kf4 f6 53. Ke4 f5+ 54. Kd3 g5 55. f4 gxf4 56. gxf4 Nd5 57. Nc5 Kf7 58. Na4 Nxf4+ 59. Ke3 Nd5+ 60. Kf3 h4 61. h3 Kg6 62. Nc5 Kf7 63. Na4 Nb4 64. Ke3 Ke7 65. Nc5 Nd5+ 66. Kf3 Nb6 67. Kf4 a4 68. Nd3 a3 69. Nc1 Nd5+ 70. Kg5 Nc3 71. Kxh4 a2 72. Nb3 Ne2 73. Kg5 Nxd4 74. Na1 Nf3+ 75. Kf4 Nd4 76. Ke3 Nc6 77. Kf4 Kf7 78. Nb3 Kg6 79. Na1 Kh5 80. Nb3 Kh4 81. Na1 Kxh3 82. Nb3 Nxe5 83. Kxe5 Kg3 84. Kd4 f4 85. Kd3 Kg2 86. Ke2 f3+ 87. Ke3 f2 0-1